[Event "IIe Tournoi de GMI du C'Chartres Echecs"]
[Site "Chartres, France"]
[Date "2021.05.18"]
[Round "4.3"]
[White "Maurizzi, Marc Andria"]
[Black "Duboue, Peio"]
[Result "1-0"]
[TimeControl "5400+30"]
[WhiteTitle "IM"]
[BlackTitle "FM"]
[WhiteElo "2489"]
[BlackElo "2431"]

1. e4 {[%clk 01:30:57]} {[%emt 00:00:02]} e5 {[%clk 01:30:55]} {[%emt
00:00:05]} 2. Nf3 {[%clk 01:31:21]} {[%emt 00:00:07]} Nc6 {[%clk 01:31:22]}
{[%emt 00:00:03]} 3. Bb5 {[%clk 01:31:45]} {[%emt 00:00:06]} g6 {[%clk
01:31:47]} {[%emt 00:00:04]} 4. d4 {[%clk 01:31:59]} {[%emt 00:00:17]} exd4
{[%clk 01:32:11]} {[%emt 00:00:05]} 5. c3 {[%clk 01:32:24]} {[%emt 00:00:05]}
a6 {[%clk 01:32:34]} {[%emt 00:00:08]} 6. Bc4 {[%clk 01:26:03]} {[%emt
00:06:51]} Bg7 {[%clk 01:30:31]} {[%emt 00:02:32]} 7. cxd4 {[%clk 01:17:09]}
{[%emt 00:09:25]} b5 {[%clk 01:30:55]} {[%emt 00:00:05]} 8. Bb3 {[%clk
01:08:23]} {[%emt 00:09:16]} d6 {[%clk 01:31:00]} {[%emt 00:00:25]} 9. O-O
{[%clk 01:02:09]} {[%emt 00:06:45]} Nge7 {[%clk 01:31:24]} {[%emt 00:00:05]} 10.
d5 {[%clk 00:59:55]} {[%emt 00:02:44]} Na5 {[%clk 01:31:38]} {[%emt 00:00:15]}
11. Bd2 {[%clk 00:59:31]} {[%emt 00:00:55]} Nxb3 {[%clk 01:21:11]} {[%emt
00:10:57]} 12. Qxb3 {[%clk 00:59:05]} {[%emt 00:00:56]} c5 {[%clk 01:17:13]}
{[%emt 00:04:27]} 13. dxc6 {[%clk 00:55:29]} {[%emt 00:04:06]} Be6 {[%clk
01:17:14]} {[%emt 00:00:30]} 14. Qe3 {[%clk 00:53:01]} {[%emt 00:02:58]} Nxc6
{[%clk 01:12:03]} {[%emt 00:05:41]} 15. Bc3 {[%clk 00:52:52]} {[%emt 00:00:40]}
Ne5 {[%clk 01:11:32]} {[%emt 00:01:00]} 16. Rd1 {[%clk 00:35:13]} {[%emt
00:18:09]} Qe7 {[%clk 01:06:03]} {[%emt 00:05:59]} 17. Nxe5 {[%clk 00:33:29]}
{[%emt 00:02:13]} dxe5 {[%clk 01:03:59]} {[%emt 00:02:34]} 18. Qe1 {[%clk
00:31:32]} {[%emt 00:02:26]} Qg5 {[%clk 00:53:29]} {[%emt 00:11:00]} 19. Bd2
{[%clk 00:27:30]} {[%emt 00:04:33]} Qh4 20. Bb4 {[%clk 00:27:30]} a5 21. Bd6
{[%clk 00:27:30]} f6 {[%clk 00:20:53]} {[%emt 00:41:52]} 22. Qc3 {[%clk
00:16:32]} {[%emt 00:04:42]} Qxe4 {[%clk 00:14:10]} {[%emt 00:07:13]} 23. Qc7
{[%clk 00:14:01]} {[%emt 00:03:01]} Bd7 {[%clk 00:13:32]} {[%emt 00:01:08]} 24.
Bf8 {[%clk 00:12:40]} {[%emt 00:01:52]} Kxf8 {[%clk 00:14:01]} {[%emt
00:00:01]} 25. Qxd7 {[%clk 00:12:32]} {[%emt 00:00:38]} h5 {[%clk 00:13:49]}
{[%emt 00:00:42]} 26. Nc3 {[%clk 00:11:24]} {[%emt 00:01:38]} Qg4 {[%clk
00:13:09]} {[%emt 00:01:09]} 27. Qd5 {[%clk 00:10:15]} {[%emt 00:01:39]} Re8
{[%clk 00:13:20]} {[%emt 00:00:20]} 28. Qxb5 {[%clk 00:08:31]} {[%emt
00:02:14]} h4 {[%clk 00:12:26]} {[%emt 00:01:24]} 29. h3 {[%clk 00:08:25]}
{[%emt 00:00:36]} Qb4 {[%clk 00:12:55]} {[%emt 00:00:01]} 30. Qc6 {[%clk
00:08:09]} {[%emt 00:00:46]} Qe7 {[%clk 00:10:58]} {[%emt 00:02:27]} 31. Rd7
{[%clk 00:07:28]} {[%emt 00:01:10]} Qe6 {[%clk 00:10:36]} {[%emt 00:00:52]} 32.
Qc7 {[%clk 00:07:30]} {[%emt 00:00:28]} Bh6 {[%clk 00:09:01]} {[%emt 00:02:05]}
33. Rad1 {[%clk 00:07:08]} {[%emt 00:00:53]} e4 {[%clk 00:09:25]} {[%emt
00:00:06]} 34. Qc5+ {[%clk 00:05:57]} {[%emt 00:01:41]} Kg8 {[%clk 00:09:48]}
{[%emt 00:00:07]} 35. R1d6 {[%clk 00:06:23]} {[%emt 00:00:04]} 1-0

[Event "IIe Tournoi de GMI du C'Chartres Echecs"]
[Site "Chartres, France"]
[Date "2021.05.18"]
[Round "4.4"]
[White "Shirazi, Kamran"]
[Black "Stephan, Victor"]
[Result "0-1"]
[TimeControl "5400+30"]
[WhiteTitle "IM"]
[BlackTitle "IM"]
[WhiteElo "2349"]
[BlackElo "2430"]

1. d4 {[%clk 01:30:35]} {[%emt 00:00:23]} Nf6 {[%clk 01:30:48]} {[%emt
00:00:12]} 2. Nc3 {[%clk 01:30:43]} {[%emt 00:00:23]} d5 {[%clk 01:30:27]}
{[%emt 00:00:51]} 3. Bg5 {[%clk 01:30:55]} {[%emt 00:00:16]} c5 {[%clk
01:30:28]} {[%emt 00:00:30]} 4. e3 {[%clk 01:27:36]} {[%emt 00:03:51]} Nc6
{[%clk 01:29:06]} {[%emt 00:01:51]} 5. Nf3 {[%clk 01:20:05]} {[%emt 00:08:01]}
e6 {[%clk 01:24:55]} {[%emt 00:04:40]} 6. a3 {[%clk 01:19:25]} {[%emt
00:01:11]} Be7 {[%clk 01:17:12]} {[%emt 00:08:12]} 7. dxc5 {[%clk 01:17:48]}
{[%emt 00:02:08]} Bxc5 {[%clk 01:16:42]} {[%emt 00:00:59]} 8. Bd3 {[%clk
01:16:29]} {[%emt 00:01:49]} O-O {[%clk 01:12:53]} {[%emt 00:04:19]} 9. O-O
{[%clk 01:11:39]} {[%emt 00:05:20]} h6 {[%clk 01:10:03]} {[%emt 00:03:21]} 10.
Bh4 {[%clk 01:10:50]} {[%emt 00:01:18]} Be7 {[%clk 01:10:09]} {[%emt 00:00:24]}
11. Qe1 {[%clk 01:03:22]} {[%emt 00:07:58]} Nh5 {[%clk 01:01:13]} {[%emt
00:09:26]} 12. Bxe7 {[%clk 00:54:47]} {[%emt 00:09:05]} Qxe7 {[%clk 01:01:22]}
{[%emt 00:00:21]} 13. b4 {[%clk 00:52:50]} {[%emt 00:02:28]} b6 {[%clk
00:50:33]} {[%emt 00:11:19]} 14. Ne2 {[%clk 00:47:49]} {[%emt 00:05:31]} Bb7
{[%clk 00:47:50]} {[%emt 00:03:13]} 15. Nf4 {[%clk 00:44:39]} {[%emt 00:03:40]}
Nf6 {[%clk 00:44:17]} {[%emt 00:04:03]} 16. c4 {[%clk 00:44:44]} {[%emt
00:00:25]} dxc4 {[%clk 00:39:40]} {[%emt 00:05:07]} 17. Bxc4 {[%clk 00:45:10]}
{[%emt 00:00:04]} Rac8 {[%clk 00:39:46]} {[%emt 00:00:24]} 18. Qe2 {[%clk
00:40:47]} {[%emt 00:04:53]} Rfd8 {[%clk 00:36:09]} {[%emt 00:04:07]} 19. Rfd1
{[%clk 00:36:01]} {[%emt 00:05:16]} Ne4 {[%clk 00:34:53]} {[%emt 00:01:46]} 20.
Qb2 {[%clk 00:33:31]} {[%emt 00:03:00]} Rxd1+ {[%clk 00:29:25]} {[%emt
00:05:58]} 21. Rxd1 {[%clk 00:33:58]} {[%emt 00:00:03]} Rd8 {[%clk 00:29:33]}
{[%emt 00:00:22]} 22. Rc1 {[%clk 00:27:43]} {[%emt 00:21:53]} Qf6 {[%clk
00:28:09]} 23. Qxf6 Nxf6 {[%clk 00:28:30]} 24. h3 {[%clk 00:27:06]} g5 {[%clk
00:25:40]} 25. Nd3 {[%clk 00:21:11]} Ne4 {[%clk 00:23:36]} {[%emt 00:00:51]} 26.
Bb5 {[%clk 00:15:53]} {[%emt 00:05:49]} Rc8 {[%clk 00:19:51]} {[%emt 00:04:15]}
27. Bxc6 {[%clk 00:11:09]} {[%emt 00:05:14]} Rxc6 {[%clk 00:19:53]} {[%emt
00:00:28]} 28. Rxc6 {[%clk 00:11:20]} {[%emt 00:00:20]} Bxc6 {[%clk 00:20:19]}
{[%emt 00:00:04]} 29. Nd4 {[%clk 00:10:56]} {[%emt 00:00:53]} Be8 {[%clk
00:16:52]} {[%emt 00:03:57]} 30. Ne5 {[%clk 00:08:39]} {[%emt 00:02:48]} Nd6
{[%clk 00:14:26]} {[%emt 00:02:55]} 31. Kf1 {[%clk 00:08:32]} {[%emt 00:00:37]}
Nb5 {[%clk 00:10:26]} {[%emt 00:04:30]} 32. Nxb5 {[%clk 00:08:46]} {[%emt
00:00:16]} Bxb5+ {[%clk 00:10:50]} {[%emt 00:00:05]} 33. Ke1 {[%clk 00:09:05]}
{[%emt 00:00:11]} f6 {[%clk 00:10:33]} {[%emt 00:00:47]} 34. Ng4 {[%clk
00:09:00]} {[%emt 00:00:36]} Kg7 {[%clk 00:10:16]} {[%emt 00:00:46]} 35. f3
{[%clk 00:06:55]} {[%emt 00:02:36]} h5 {[%clk 00:09:07]} {[%emt 00:01:38]} 36.
Nf2 {[%clk 00:07:16]} {[%emt 00:00:08]} f5 {[%clk 00:08:55]} {[%emt 00:00:42]}
37. h4 {[%clk 00:05:30]} {[%emt 00:02:17]} gxh4 {[%clk 00:07:22]} {[%emt
00:02:03]} 38. Nh3 {[%clk 00:05:09]} {[%emt 00:00:50]} e5 {[%clk 00:06:18]}
{[%emt 00:01:34]} 39. Kf2 {[%clk 00:05:14]} {[%emt 00:00:25]} Kf6 {[%clk
00:06:22]} {[%emt 00:00:26]} 40. f4 {[%clk 00:04:32]} {[%emt 00:01:13]} Ke6
{[%clk 00:05:06]} {[%emt 00:01:45]} 41. Ng5+ {[%clk 00:04:28]} {[%emt
00:00:34]} Kd5 {[%clk 00:04:25]} {[%emt 00:01:11]} 42. fxe5 {[%clk 00:04:44]}
{[%emt 00:00:14]} Kxe5 {[%clk 00:04:39]} {[%emt 00:00:16]} 43. Nf3+ {[%clk
00:05:08]} {[%emt 00:00:05]} Kd5 {[%clk 00:03:41]} {[%emt 00:01:28]} 44. Nxh4
{[%clk 00:05:22]} {[%emt 00:00:17]} Bd7 {[%clk 00:03:13]} {[%emt 00:00:57]} 45.
Ng6 {[%clk 00:05:44]} {[%emt 00:00:08]} Be8 {[%clk 00:02:14]} {[%emt 00:01:28]}
46. Nh4 {[%clk 00:06:11]} {[%emt 00:00:04]} Kc4 {[%clk 00:01:57]} {[%emt
00:00:47]} 47. Nxf5 {[%clk 00:06:32]} {[%emt 00:00:09]} Kb3 {[%clk 00:02:21]}
{[%emt 00:00:05]} 48. Nd6 {[%clk 00:02:43]} {[%emt 00:04:20]} Bd7 {[%clk
00:02:42]} {[%emt 00:00:08]} 49. b5 {[%clk 00:02:45]} {[%emt 00:00:29]} Kxa3
{[%clk 00:02:49]} {[%emt 00:00:23]} 50. e4 {[%clk 00:02:11]} {[%emt 00:01:04]}
Kb4 {[%clk 00:03:07]} {[%emt 00:00:11]} 51. Ke3 {[%clk 00:02:21]} {[%emt
00:00:21]} Kc5 {[%clk 00:01:58]} {[%emt 00:01:38]} 52. e5 {[%clk 00:02:46]}
{[%emt 00:00:06]} Kd5 {[%clk 00:02:00]} {[%emt 00:00:27]} 53. Kf4 {[%clk
00:03:07]} {[%emt 00:00:11]} h4 {[%clk 00:01:34]} {[%emt 00:00:56]} 54. Nf5
{[%clk 00:03:18]} {[%emt 00:00:19]} Bxb5 {[%clk 00:01:30]} {[%emt 00:00:34]} 55.
Nxh4 {[%clk 00:03:21]} {[%emt 00:00:27]} a5 {[%clk 00:01:51]} {[%emt 00:00:09]}
56. Nf5 {[%clk 00:03:31]} {[%emt 00:00:20]} Bd7 {[%clk 00:01:33]} {[%emt
00:00:48]} 57. g4 {[%clk 00:03:36]} {[%emt 00:00:26]} b5 {[%clk 00:01:26]}
{[%emt 00:00:37]} 58. g5 {[%clk 00:03:12]} {[%emt 00:00:54]} b4 {[%clk
00:01:48]} {[%emt 00:00:08]} 59. g6 {[%clk 00:03:06]} {[%emt 00:00:36]} b3
{[%clk 00:02:00]} {[%emt 00:00:18]} 60. g7 {[%clk 00:02:28]} {[%emt 00:01:08]}
Be6 {[%clk 00:02:26]} {[%emt 00:00:05]} 61. Ne3+ {[%clk 00:02:44]} {[%emt
00:00:14]} Kd4 {[%clk 00:02:29]} {[%emt 00:00:26]} 62. Nd1 {[%clk 00:01:38]}
{[%emt 00:01:36]} a4 {[%clk 00:02:52]} {[%emt 00:00:07]} 63. Kg5 {[%clk
00:01:13]} {[%emt 00:00:55]} Kxe5 {[%clk 00:02:56]} {[%emt 00:00:26]} 0-1

[Event "IIe Tournoi de GMI du C'Chartres Echecs"]
[Site "Chartres, France"]
[Date "2021.05.18"]
[Round "4.5"]
[White "Vlachos, Anatole"]
[Black "Milliet, Sophie"]
[Result "1/2-1/2"]
[TimeControl "5400+30"]
[WhiteTitle "IM"]
[BlackTitle "IM"]
[WhiteElo "2438"]
[BlackElo "2390"]

1. e4 {[%clk 01:30:58]} {[%emt 00:00:01]} c5 {[%clk 01:30:53]} {[%emt
00:00:07]} 2. Nf3 {[%clk 01:31:22]} {[%emt 00:00:06]} e6 {[%clk 01:31:19]}
{[%emt 00:00:05]} 3. g3 {[%clk 01:31:45]} {[%emt 00:00:06]} Nc6 {[%clk
01:31:19]} {[%emt 00:00:31]} 4. Bg2 {[%clk 01:32:07]} {[%emt 00:00:06]} Nf6
{[%clk 01:31:16]} {[%emt 00:00:34]} 5. Nc3 {[%clk 01:31:53]} {[%emt 00:00:44]}
d5 {[%clk 01:29:58]} {[%emt 00:01:49]} 6. exd5 {[%clk 01:32:13]} {[%emt
00:00:10]} exd5 {[%clk 01:30:24]} {[%emt 00:00:04]} 7. d4 {[%clk 01:32:38]}
{[%emt 00:00:05]} cxd4 {[%clk 01:24:39]} {[%emt 00:06:16]} 8. Nxd4 {[%clk
01:31:59]} {[%emt 00:01:07]} Bg4 {[%clk 01:24:30]} {[%emt 00:00:40]} 9. Nce2
{[%clk 01:26:34]} {[%emt 00:05:56]} Bc5 {[%clk 01:01:54]} {[%emt 00:23:06]} 10.
Nb3 {[%clk 01:20:34]} {[%emt 00:06:29]} O-O {[%clk 00:51:37]} {[%emt 00:10:47]}
11. Nxc5 {[%clk 01:18:27]} {[%emt 00:02:36]} Qa5+ {[%clk 00:52:02]} {[%emt
00:00:06]} 12. c3 {[%clk 01:15:59]} {[%emt 00:02:57]} Qxc5 {[%clk 00:52:30]}
{[%emt 00:00:03]} 13. Be3 {[%clk 01:15:54]} {[%emt 00:00:35]} Qb5 {[%clk
00:52:20]} {[%emt 00:00:40]} 14. h3 {[%clk 01:15:29]} {[%emt 00:00:55]} Bh5
{[%clk 00:51:44]} {[%emt 00:01:06]} 15. g4 {[%clk 01:13:39]} {[%emt 00:02:20]}
Bg6 {[%clk 00:52:11]} {[%emt 00:00:04]} 16. Qb3 {[%clk 01:06:32]} {[%emt
00:07:35]} Qa6 {[%clk 00:50:51]} {[%emt 00:01:52]} 17. Nf4 {[%clk 01:01:57]}
{[%emt 00:05:05]} Be4 {[%clk 00:33:11]} {[%emt 00:18:11]} 18. f3 {[%clk
00:58:58]} {[%emt 00:03:29]} Bd3 {[%clk 00:31:36]} {[%emt 00:02:05]} 19. Kf2
{[%clk 00:49:00]} {[%emt 00:10:28]} Bc4 {[%clk 00:28:40]} {[%emt 00:03:27]} 20.
Qc2 {[%clk 00:48:09]} {[%emt 00:01:21]} Rfe8 {[%clk 00:17:40]} {[%emt
00:11:30]} 21. Rhe1 {[%clk 00:46:29]} {[%emt 00:02:09]} d4 {[%emt 00:01:50]} 22.
cxd4 g5 23. Qf5 gxf4 24. Qg5+ Kf8 25. Bxf4 Ne7 26. Be5 Neg8 27. Qd2 Qb6 {[%clk
00:16:21]} 28. Qc3 {[%clk 00:36:03]} Rac8 {[%clk 00:16:21]} 29. Kg3 {[%clk
00:36:03]} Nd5 {[%clk 00:16:21]} 30. Qa3+ {[%clk 00:36:03]} Nge7 {[%clk
00:16:21]} 31. f4 {[%clk 00:36:03]} Kg8 {[%clk 00:16:21]} 32. Bd6 {[%clk
00:19:07]} {[%emt 00:49:43]} Qxd4 {[%clk 00:00:50]} {[%emt 00:04:11]} 33. Rad1
{[%clk 00:18:43]} {[%emt 00:00:54]} Qf6 {[%clk 00:01:20]} 34. b3 {[%clk
00:17:31]} {[%emt 00:01:41]} Qc3+ {[%clk 00:00:43]} {[%emt 00:01:07]} 35. Kh2
{[%clk 00:17:24]} {[%emt 00:00:36]} Ne3 {[%clk 00:00:49]} {[%emt 00:00:25]} 36.
Bb4 {[%clk 00:16:29]} {[%emt 00:01:25]} Qf6 {[%clk 00:00:36]} {[%emt 00:00:42]}
37. Rxe3 {[%clk 00:16:46]} {[%emt 00:00:14]} Qxf4+ {[%clk 00:01:02]} {[%emt
00:00:04]} 38. Rg3 {[%clk 00:17:14]} {[%emt 00:00:02]} Be2 {[%clk 00:00:52]}
{[%emt 00:00:41]} 39. Re1 {[%clk 00:14:31]} {[%emt 00:03:13]} Nc6 {[%clk
00:01:10]} {[%emt 00:00:12]} 40. Bd6 {[%clk 00:11:34]} {[%emt 00:03:27]} Qd2
{[%clk 00:01:36]} {[%emt 00:00:04]} 41. Rg1 {[%clk 00:10:13]} {[%emt 00:01:50]}
Rcd8 {[%clk 00:00:54]} {[%emt 00:01:13]} 42. Bc5 {[%clk 00:10:00]} {[%emt
00:00:42]} Ne5 {[%clk 00:00:49]} {[%emt 00:00:35]} 43. Kh1 {[%clk 00:08:32]}
{[%emt 00:01:58]} Qf4 {[%clk 00:00:42]} {[%emt 00:00:37]} 44. b4 {[%clk
00:06:40]} {[%emt 00:02:22]} Nd3 {[%clk 00:01:00]} {[%emt 00:00:12]} 45. Bxb7
{[%clk 00:06:45]} {[%emt 00:00:25]} Re4 {[%clk 00:00:32]} {[%emt 00:00:58]} 46.
Bxe4 {[%emt 00:00:56]} Qxe4+ {[%emt 00:00:01]} 47. Kh2 {[%clk 00:06:43]} {[%emt
00:00:04]} Bf3 {[%clk 00:00:59]} {[%emt 00:00:34]} 48. Qc3 {[%clk 00:04:42]}
{[%emt 00:02:31]} Qe2+ {[%clk 00:00:53]} {[%emt 00:00:36]} 49. R1g2 {[%clk
00:05:11]} {[%emt 00:00:01]} Bxg2 {[%clk 00:01:05]} {[%emt 00:00:19]} 50. Rxg2
{[%clk 00:05:39]} Qf1 {[%clk 00:00:48]} {[%emt 00:00:47]} 51. Qd2 {[%clk
00:05:17]} {[%emt 00:00:53]} Rd5 {[%clk 00:00:53]} {[%emt 00:00:24]} 52. Qe3
{[%clk 00:04:21]} {[%emt 00:01:24]} Re5 {[%clk 00:00:34]} {[%emt 00:00:52]} 53.
Qd4 {[%clk 00:04:45]} {[%emt 00:00:06]} Re8 {[%clk 00:00:37]} {[%emt 00:00:27]}
54. Qd7 {[%clk 00:00:37]} {[%emt 00:04:38]} Qf4+ {[%clk 00:00:57]} {[%emt
00:00:09]} 55. Kh1 {[%clk 00:01:05]} {[%emt 00:00:02]} Re1+ {[%clk 00:00:51]}
{[%emt 00:00:36]} 56. Bg1 {[%clk 00:01:33]} {[%emt 00:00:01]} Nf2+ {[%clk
00:00:32]} {[%emt 00:00:50]} 57. Rxf2 {[%clk 00:01:58]} {[%emt 00:00:04]} Qxf2
{[%clk 00:01:00]} {[%emt 00:00:03]} 58. Qd8+ {[%clk 00:02:18]} {[%emt
00:00:09]} Kg7 {[%clk 00:01:28]} {[%emt 00:00:02]} 59. Qg5+ {[%clk 00:02:44]}
{[%emt 00:00:04]} Kf8 {[%clk 00:01:02]} {[%emt 00:00:55]} 60. Qd8+ {[%clk
00:03:09]} {[%emt 00:00:05]} 1/2-1/2

[Event "IIe Tournoi de GMI du C'Chartres Echecs"]
[Site "Chartres, France"]
[Date "2021.05.19"]
[Round "5.1"]
[White "Flear, Glenn"]
[Black "Loiseau, Quentin"]
[Result "1/2-1/2"]
[TimeControl "5400+30"]
[WhiteTitle "GM"]
[BlackTitle "IM"]
[WhiteElo "2431"]
[BlackElo "2455"]

1. d4 {[%clk 01:30:50]} {[%emt 00:00:10]} d5 {[%clk 01:30:38]} {[%emt
00:00:23]} 2. c4 {[%clk 01:30:41]} {[%emt 00:00:39]} e6 {[%clk 01:30:51]}
{[%emt 00:00:17]} 3. Nc3 {[%clk 01:30:52]} {[%emt 00:00:19]} c6 {[%clk
01:31:12]} {[%emt 00:00:08]} 4. e3 {[%clk 01:30:49]} {[%emt 00:00:32]} Nf6
{[%clk 01:31:27]} {[%emt 00:00:16]} 5. Nf3 {[%clk 01:31:02]} {[%emt 00:00:17]}
Nbd7 {[%clk 01:31:52]} {[%emt 00:00:05]} 6. Nd2 {[%clk 01:30:01]} {[%emt
00:01:30]} Be7 {[%clk 01:15:27]} {[%emt 00:16:55]} 7. g3 {[%clk 01:28:59]}
{[%emt 00:01:32]} dxc4 {[%clk 01:12:03]} {[%emt 00:03:55]} 8. Bg2 {[%clk
01:22:14]} {[%emt 00:07:14]} Rb8 {[%clk 01:02:37]} {[%emt 00:09:57]} 9. Nxc4
{[%clk 01:10:02]} {[%emt 00:12:41]} b5 {[%clk 01:01:38]} {[%emt 00:01:28]} 10.
Ne5 {[%clk 01:04:19]} {[%emt 00:06:13]} Nxe5 {[%clk 00:57:20]} {[%emt
00:04:49]} 11. dxe5 {[%clk 01:02:15]} {[%emt 00:02:33]} Qxd1+ {[%emt 00:01:03]}
12. Kxd1 {[%clk 01:01:48]} {[%emt 00:00:02]} Ng4 {[%clk 00:55:36]} {[%emt
00:02:37]} 13. Bxc6+ {[%clk 00:51:19]} {[%emt 00:10:59]} Kf8 {[%clk 00:50:46]}
{[%emt 00:05:19]} 14. Ke1 {[%clk 00:51:09]} {[%emt 00:00:39]} b4 {[%clk
00:50:25]} {[%emt 00:00:52]} 15. Ne2 {[%clk 00:50:39]} {[%emt 00:00:59]} Nxe5
{[%clk 00:50:44]} {[%emt 00:00:13]} 16. Be4 {[%clk 00:48:47]} {[%emt 00:02:21]}
f5 {[%clk 00:36:17]} {[%emt 00:14:58]} 17. f4 {[%clk 00:47:51]} {[%emt
00:01:25]} Nc4 {[%clk 00:32:57]} {[%emt 00:03:51]} 18. Bf3 {[%clk 00:44:25]}
{[%emt 00:03:55]} Bf6 {[%clk 00:18:33]} {[%emt 00:14:54]} 19. Nd4 {[%clk
00:41:59]} {[%emt 00:02:56]} Bb7 {[%clk 00:08:54]} {[%emt 00:10:09]} 20. Bxb7
{[%clk 00:40:44]} {[%emt 00:01:45]} Rxb7 {[%clk 00:09:23]} {[%emt 00:00:02]} 21.
b3 {[%clk 00:40:02]} {[%emt 00:01:12]} Bxd4 {[%clk 00:09:34]} {[%emt 00:00:19]}
22. exd4 {[%clk 00:40:20]} {[%emt 00:00:12]} Nb6 {[%clk 00:10:03]} {[%emt
00:00:01]} 23. Bd2 {[%clk 00:38:40]} {[%emt 00:02:09]} Nd5 {[%clk 00:10:23]}
{[%emt 00:00:11]} 24. Rc1 {[%clk 00:38:42]} {[%emt 00:00:27]} Ke7 {[%clk
00:10:25]} {[%emt 00:00:30]} 25. Ke2 {[%clk 00:37:27]} {[%emt 00:01:44]} a5
{[%clk 00:06:47]} {[%emt 00:04:08]} 26. Rc4 {[%clk 00:29:34]} {[%emt 00:08:22]}
Kd7 {[%clk 00:06:35]} {[%emt 00:00:43]} 27. Rb1 {[%clk 00:27:17]} {[%emt
00:02:47]} h5 {[%clk 00:02:35]} {[%emt 00:04:30]} 28. h4 {[%clk 00:25:42]}
{[%emt 00:02:04]} Rhb8 {[%clk 00:02:20]} {[%emt 00:00:46]} 29. Be1 {[%clk
00:24:47]} {[%emt 00:01:25]} Ra7 {[%clk 00:01:18]} {[%emt 00:01:33]} 30. a4
{[%clk 00:18:23]} {[%emt 00:06:53]} bxa3 {[%clk 00:01:42]} {[%emt 00:00:07]} 31.
Ra4 {[%clk 00:18:48]} {[%emt 00:00:05]} Rb5 {[%clk 00:01:24]} {[%emt 00:00:47]}
32. Rxa3 {[%clk 00:18:42]} {[%emt 00:00:35]} Ke8 {[%clk 00:00:36]} {[%emt
00:01:19]} 33. Rba1 {[%clk 00:14:55]} {[%emt 00:04:17]} Rab7 {[%clk 00:00:54]}
{[%emt 00:00:12]} 34. Rb1 {[%clk 00:14:06]} {[%emt 00:01:19]} a4 {[%clk
00:00:43]} {[%emt 00:00:41]} 35. Rxa4 {[%clk 00:13:26]} {[%emt 00:01:10]} Rxb3
{[%clk 00:01:09]} {[%emt 00:00:04]} 36. Rxb3 {[%clk 00:13:48]} {[%emt
00:00:08]} Rxb3 {[%clk 00:01:38]} {[%emt 00:00:02]} 37. Ra7 {[%clk 00:13:30]}
{[%emt 00:00:46]} Kf8 {[%clk 00:02:03]} {[%emt 00:00:06]} 38. Ra8+ {[%clk
00:11:52]} {[%emt 00:02:09]} Kf7 {[%clk 00:02:30]} {[%emt 00:00:02]} 39. Ra7+
{[%clk 00:12:11]} {[%emt 00:00:11]} Kf6 {[%clk 00:02:58]} {[%emt 00:00:02]} 40.
Ra8 {[%clk 00:11:18]} {[%emt 00:01:23]} Rb2+ {[%clk 00:03:21]} {[%emt
00:00:08]} 41. Kf3 {[%clk 00:11:30]} {[%emt 00:00:17]} Rc2 {[%clk 00:02:56]}
{[%emt 00:00:56]} 42. Ra3 {[%clk 00:10:19]} {[%emt 00:01:40]} Rc4 {[%clk
00:02:25]} {[%emt 00:01:02]} 43. Rd3 {[%clk 00:10:09]} {[%emt 00:00:39]} Ra4
{[%clk 00:02:53]} {[%emt 00:00:03]} 44. Bf2 {[%clk 00:09:22]} {[%emt 00:01:16]}
Kg6 {[%clk 00:02:59]} {[%emt 00:00:24]} 45. Rb3 {[%clk 00:09:19]} {[%emt
00:00:33]} Ra6 {[%clk 00:02:23]} {[%emt 00:01:06]} 46. Be1 {[%clk 00:07:09]}
{[%emt 00:02:39]} Ra1 {[%clk 00:01:58]} {[%emt 00:00:56]} 47. Bf2 {[%clk
00:05:57]} {[%emt 00:01:42]} Kf6 {[%clk 00:02:15]} {[%emt 00:00:14]} 48. Be3
{[%clk 00:05:46]} {[%emt 00:00:41]} Re1 {[%clk 00:02:07]} {[%emt 00:00:38]} 49.
Bf2 {[%clk 00:06:06]} {[%emt 00:00:10]} Rc1 {[%clk 00:02:32]} {[%emt 00:00:05]}
50. Rb7 {[%clk 00:04:42]} {[%emt 00:01:55]} Rc7 {[%clk 00:02:55]} {[%emt
00:00:06]} 51. Rb8 {[%clk 00:04:33]} {[%emt 00:00:39]} Rc3+ {[%clk 00:02:40]}
{[%emt 00:00:45]} 52. Ke2 {[%clk 00:04:46]} {[%emt 00:00:17]} Rc2+ {[%clk
00:03:00]} {[%emt 00:00:10]} 53. Kf3 {[%clk 00:05:11]} {[%emt 00:00:05]} Kf7
{[%clk 00:02:47]} {[%emt 00:00:43]} 54. Rb7+ {[%clk 00:05:27]} {[%emt
00:00:15]} Rc7 {[%clk 00:03:11]} {[%emt 00:00:05]} 55. Rb8 {[%clk 00:05:06]}
{[%emt 00:00:51]} Nf6 {[%clk 00:03:24]} {[%emt 00:00:17]} 56. Be1 {[%clk
00:03:23]} {[%emt 00:02:13]} Ne4 {[%clk 00:03:31]} {[%emt 00:00:23]} 57. Rb5
{[%clk 00:03:08]} {[%emt 00:00:45]} Rc1 {[%clk 00:02:45]} {[%emt 00:01:16]} 58.
Ke2 {[%clk 00:02:52]} {[%emt 00:00:46]} Rc2+ {[%clk 00:03:00]} {[%emt
00:00:14]} 59. Kf3 {[%clk 00:02:41]} {[%emt 00:00:40]} Rc1 {[%clk 00:00:58]}
{[%emt 00:02:34]} 60. Ke2 {[%clk 00:03:05]} {[%emt 00:00:06]} Ra1 {[%clk
00:00:53]} {[%emt 00:00:35]} 61. d5 {[%clk 00:02:00]} {[%emt 00:01:36]} Ra2+
{[%clk 00:01:18]} {[%emt 00:00:04]} 62. Ke3 {[%clk 00:01:21]} {[%emt 00:01:09]}
Ra3+ {[%clk 00:01:22]} {[%emt 00:00:27]} 63. Kd4 {[%clk 00:01:15]} {[%emt
00:00:36]} exd5 {[%clk 00:01:18]} {[%emt 00:00:34]} 64. Kxd5 {[%clk 00:01:12]}
{[%emt 00:00:33]} Re3 {[%clk 00:01:13]} {[%emt 00:00:34]} 65. Rb1 {[%clk
00:01:06]} {[%emt 00:00:34]} Nf6+ {[%clk 00:00:40]} {[%emt 00:01:05]} 66. Kd4
{[%clk 00:01:15]} {[%emt 00:00:21]} Re4+ {[%clk 00:00:45]} {[%emt 00:00:27]} 67.
Kd3 {[%clk 00:01:35]} {[%emt 00:00:08]} Nd5 {[%clk 00:00:36]} {[%emt 00:00:41]}
68. Bd2 {[%clk 00:01:48]} {[%emt 00:00:16]} Ra4 {[%clk 00:00:33]} {[%emt
00:00:33]} 69. Rb3 {[%clk 00:01:18]} {[%emt 00:01:00]} Kg6 {[%clk 00:00:50]}
{[%emt 00:00:13]} 70. Bc3 {[%clk 00:01:14]} {[%emt 00:00:34]} Ra2 {[%clk
00:00:46]} {[%emt 00:00:33]} 71. Bb2 {[%clk 00:01:32]} {[%emt 00:00:12]} Ra6
{[%clk 00:00:34]} {[%emt 00:00:43]} 72. Rb7 {[%clk 00:01:33]} {[%emt 00:00:28]}
Nf6 {[%clk 00:00:34]} {[%emt 00:00:30]} 73. Bxf6 {[%clk 00:01:55]} {[%emt
00:00:08]} Rxf6 {[%clk 00:00:57]} {[%emt 00:00:06]} 1/2-1/2